bitfinex-derivatives/quotes_BTCF0:USTF0_20240817
["timestamp","ask_amount","ask_price","bid_price","bid_amount"]
[1723875419197,0.05089085,59204.0,59203.0,0.26251066]
[1723875426509,0.05089085,59204.0,59203.0,0.26249812]
[1723875428511,0.05089085,59204.0,59203.0,0.36372974]
[1723875430911,0.05089085,59204.0,59203.0,0.36375036]
[1723875433010,0.00025343,59204.0,59203.0,0.36383768]
[1723875435610,0.00025343,59204.0,59203.0,0.36385084]
[1723875440507,0.05089085,59204.0,59203.0,0.36385084]
[1723875444519,0.05066768,59206.0,59203.0,0.2625319]
[1723875444707,0.05066768,59211.0,59210.0,0.067539]
[1723875444904,0.05066768,59214.0,59210.0,0.45029861]
[1723875445104,0.05066768,59216.0,59213.0,0.0934]
[1723875445413,0.09596768,59220.0,59215.0,0.0934]
[1723875445616,0.09596768,59220.0,59219.0,0.0934]
[1723875446418,0.0453,59220.0,59219.0,0.0934]
[1723875447120,0.0453,59220.0,59219.0,0.22930822]
[1723875447507,0.0453,59220.0,59219.0,0.23030822]
[1723875448618,0.0453,59220.0,59219.0,0.162929]
[1723875450525,0.0453,59220.0,59219.0,0.17300508]
[1723875451421,0.0453,59220.0,59219.0,0.22348143]
[1723875452121,0.00025343,59223.0,59222.0,0.067526]
[1723875452321,0.03025343,59223.0,59222.0,0.22820617]
[1723875453419,0.03025343,59223.0,59222.0,0.22920617]
[1723875453613,0.03025343,59223.0,59222.0,0.161926]
[1723875453809,0.00025343,59223.0,59222.0,0.162926]
[1723875454916,0.03025343,59223.0,59222.0,0.162926]
[1723875455917,0.03025343,59223.0,59222.0,0.21332505]
[1723875460430,0.03025343,59223.0,59222.0,0.162926]
[1723875460627,0.03025343,59223.0,59222.0,0.069526]
[1723875460828,0.03025343,59223.0,59222.0,0.21330288]
[1723875465332,0.03025343,59223.0,59222.0,0.162926]
[1723875472443,0.03025343,59223.0,59222.0,0.23020617]
[1723875473442,0.03025343,59223.0,59222.0,0.162926]
[1723875478044,0.03025343,59223.0,59222.0,0.24718986]
[1723875478245,0.03025343,59223.0,59222.0,0.162926]
[1723875478440,0.03025343,59223.0,59222.0,0.24718986]
[1723875479343,0.03025343,59223.0,59222.0,0.33539818]
[1723875479542,0.03025343,59223.0,59222.0,0.33540665]
[1723875479947,0.03025343,59223.0,59222.0,0.162926]
[1723875479948,0.08092111,59223.0,59222.0,0.162926]
[1723875480146,0.08087278,59223.0,59222.0,0.162926]
[1723875480346,0.03025343,59223.0,59222.0,0.162926]
[1723875481349,0.03025343,59223.0,59222.0,0.24718986]
[1723875482155,0.03025343,59223.0,59222.0,0.162926]
[1723875487559,0.08088408,59223.0,59222.0,0.24718986]
[1723875487760,0.03025343,59223.0,59222.0,0.162926]
[1723875488053,0.03025343,59223.0,59222.0,0.24718986]
[1723875488260,0.08088361,59223.0,59222.0,0.24718986]
[1723875488457,0.03025343,59223.0,59222.0,0.33552138]
[1723875488659,0.03025343,59223.0,59222.0,0.24718986]
[1723875489250,0.03025343,59223.0,59222.0,0.162926]
[1723875489851,0.03025343,59223.0,59222.0,0.24718986]
[1723875490251,0.03025343,59223.0,59222.0,0.162926]
[1723875490458,0.03025343,59223.0,59222.0,0.24718986]
[1723875490964,0.45857321,59223.0,59222.0,0.069526]
[1723875491153,0.45857321,59223.0,59222.0,0.13695971]
[1723875491154,0.39105343,59223.0,59222.0,0.13695971]
[1723875491353,0.39105343,59223.0,59222.0,0.069526]
[1723875495056,0.39105343,59223.0,59222.0,0.13695971]
[1723875495061,0.45854249,59223.0,59222.0,0.13695971]
[1723875495257,0.39105343,59223.0,59222.0,0.069526]
[1723875499180,0.39105343,59223.0,59222.0,0.119426]
[1723875499465,0.44166886,59223.0,59222.0,0.20368986]
[1723875499961,0.39105343,59223.0,59222.0,0.29212116]
[1723875500161,0.03025343,59223.0,59222.0,0.29212116]
[1723875500464,0.03025343,59223.0,59222.0,0.24500904]
[1723875500963,0.00025343,59223.0,59222.0,0.41377692]
[1723875501164,0.05061543,59233.0,59232.0,0.067514]
[1723875501353,0.08444,59239.0,59232.0,0.30154233]
[1723875501354,0.05061543,59237.0,59232.0,0.30154233]
[1723875501669,0.05061543,59238.0,59234.0,0.08416772]
[1723875501865,0.05061543,59238.0,59234.0,0.20758075]
[1723875502163,0.05086886,59240.0,59234.0,0.10466374]
[1723875502356,0.05086886,59240.0,59234.0,0.573992]
[1723875502563,0.05061543,59239.0,59234.0,0.61113509]
[1723875503165,0.05086886,59240.0,59234.0,0.61113509]
[1723875503469,0.05086886,59240.0,59234.0,0.61213509]
[1723875504169,0.05086886,59240.0,59234.0,0.68036869]
[1723875504367,0.00025343,59240.0,59239.0,0.067506]
[1723875504568,0.36105343,59240.0,59239.0,0.19804909]
[1723875505565,0.36105343,59240.0,59239.0,0.19904909]
[1723875507166,0.36105343,59240.0,59239.0,0.20004909]
[1723875507363,0.36105343,59240.0,59239.0,0.2000493]
[1723875509168,0.00025343,59240.0,59239.0,0.2000493]
[1723875509467,0.00025343,59240.0,59239.0,0.25047209]
[1723875510959,0.03025343,59240.0,59239.0,0.21332879]
[1723875511274,0.03025343,59240.0,59239.0,0.25046851]
[1723875511468,0.03025343,59240.0,59239.0,0.20004572]
[1723875511877,0.03025343,59240.0,59239.0,0.25046851]
[1723875512167,0.03025343,59240.0,59239.0,0.20004572]
[1723875520376,0.03025343,59240.0,59239.0,0.162906]
[1723875520572,0.03025343,59240.0,59239.0,0.20004604]
[1723875522772,0.03025343,59240.0,59239.0,0.162906]
[1723875525883,0.03025343,59240.0,59239.0,0.069506]
[1723875525884,0.39105343,59240.0,59239.0,0.069506]
[1723875526279,0.39105343,59240.0,59239.0,0.162906]
[1723875527386,0.44166886,59240.0,59239.0,0.162906]
[1723875527787,0.39105343,59240.0,59239.0,0.162906]
[1723875529177,0.45854249,59240.0,59239.0,0.162906]
[1723875529787,0.09774249,59240.0,59239.0,0.162906]
[1723875530290,0.03025343,59240.0,59239.0,0.21332879]
[1723875531190,0.03025343,59240.0,59239.0,0.162906]
[1723875533185,0.07765343,59240.0,59239.0,0.162906]
[1723875534593,0.17105343,59240.0,59239.0,0.002]
[1723875534781,0.19840931,59240.0,59239.0,0.002]
[1723875536194,0.23855843,59240.0,59239.0,0.002]
[1723875537391,0.32285624,59240.0,59239.0,0.002]
[1723875537892,0.24848953,59240.0,59239.0,0.002]
[1723875541089,0.75488953,59240.0,59239.0,0.002]
[1723875541294,0.24848953,59240.0,59239.0,0.002]
[1723875541492,0.66148953,59240.0,59239.0,0.002]
[1723875541693,0.15508953,59240.0,59239.0,0.002]
[1723875542097,0.51588953,59240.0,59239.0,0.002]
[1723875542496,0.51588953,59240.0,59239.0,0.03914502]
[1723875544803,0.51588953,59240.0,59239.0,0.13254502]
[1723875545097,0.51588953,59240.0,59239.0,0.20005102]
[1723875545400,0.58331269,59240.0,59239.0,0.25057206]
[1723875545788,0.51588953,59240.0,59239.0,0.20004911]
[1723875545987,0.58331269,59240.0,59239.0,0.25052615]
[1723875546497,0.51588953,59240.0,59239.0,0.25052615]
[1723875546689,0.5833141,59240.0,59239.0,0.25052615]
[1723875546897,0.58331391,59240.0,59239.0,0.25052615]
[1723875547502,0.51588953,59240.0,59239.0,0.25052615]
[1723875547690,0.58331771,59240.0,59239.0,0.25052615]
[1723875548701,0.58332191,59240.0,59239.0,0.25052615]
[1723875549096,0.51588953,59240.0,59239.0,0.25052615]
[1723875549999,1.51568953,59240.0,59239.0,0.03914311]
[1723875552306,1.59997737,59240.0,59239.0,0.03914311]
[1723875552503,1.51568953,59240.0,59239.0,0.03914311]
[1723875552702,1.59997737,59240.0,59239.0,0.03914311]
[1723875553605,1.51568953,59240.0,59239.0,0.08963643]
[1723875554001,1.11568953,59240.0,59239.0,0.08963643]
[1723875554299,1.51568953,59240.0,59239.0,0.08963643]
[1723875555506,1.19997737,59240.0,59239.0,0.08966417]
[1723875555709,1.19997737,59240.0,59239.0,0.08966374]
[1723875556511,1.19997737,59240.0,59239.0,0.03914311]
[1723875557814,1.11568953,59240.0,59239.0,0.002]
[1723875558103,1.11568953,59240.0,59239.0,0.03914554]
[1723875558303,1.20004436,59240.0,59239.0,0.08966617]
[1723875558504,1.20004436,59240.0,59239.0,0.03914554]
[1723875559219,1.20004436,59240.0,59239.0,0.08966581]
[1723875560012,1.11568953,59240.0,59239.0,0.03914518]
[1723875560206,1.20004465,59240.0,59239.0,0.03914518]
[1723875561105,1.11568953,59240.0,59239.0,0.03914518]
[1723875561502,1.14304448,59240.0,59239.0,0.03914518]
[1723875561699,1.11568953,59240.0,59239.0,0.03914518]
[1723875562207,1.14304451,59240.0,59239.0,0.03914518]
[1723875562710,0.63664451,59240.0,59239.0,0.03914518]
[1723875565606,0.63664451,59240.0,59239.0,0.002]
[1723875565816,0.63664451,59240.0,59239.0,0.03914561]
[1723875566613,0.73784309,59240.0,59239.0,0.03914561]
[1723875567207,1.09864309,59240.0,59239.0,0.03914561]
[1723875568318,0.067508,59238.0,59226.0,1e-08]
[1723875568619,0.10125492,59234.0,59230.0,0.050555]
[1723875568816,0.067517,59230.0,59228.0,0.050555]
[1723875569015,0.02735498,59229.0,59228.0,0.050555]
[1723875569221,0.42735498,59229.0,59228.0,0.08770703]
[1723875569519,0.42735498,59229.0,59227.0,0.050555]
[1723875569727,0.12075498,59228.0,59227.0,0.050555]
[1723875570022,0.49075498,59228.0,59227.0,0.050555]
[1723875570329,0.4634,59228.0,59226.0,0.051555]
[1723875570919,0.4644,59228.0,59227.0,0.001]
[1723875571421,0.4644,59228.0,59226.0,0.001]
[1723875571626,0.54872746,59228.0,59226.0,0.002]
[1723875571825,0.54872746,59228.0,59226.0,0.001]
[1723875572126,0.4644,59228.0,59226.0,0.001]
[1723875572825,4e-05,59227.0,59226.0,0.002]
[1723875573022,0.33004,59227.0,59226.0,0.002]
[1723875573220,0.75836,59227.0,59226.0,0.001]
[1723875573419,0.84268746,59227.0,59226.0,0.001]
[1723875573726,0.75836,59227.0,59226.0,0.001]
[1723875574528,0.75836,59227.0,59226.0,0.002]
[1723875574723,0.75836,59227.0,59226.0,0.00184]
[1723875574929,1.11916,59227.0,59226.0,0.00084]
[1723875575230,1.12016,59227.0,59226.0,0.00184]
[1723875575537,1.12016,59227.0,59226.0,0.001]
[1723875575836,1.13130497,59227.0,59226.0,0.002]
[1723875583132,1.1986057,59227.0,59226.0,0.002]
[1723875583637,1.13130497,59227.0,59226.0,0.002]
[1723875584530,1.19860679,59227.0,59226.0,0.002]
[1723875585236,1.13130497,59227.0,59226.0,0.002]
[1723875586839,0.40970497,59227.0,59226.0,0.002]
[1723875587038,1.13130497,59227.0,59226.0,0.002]
[1723875587427,0.40970497,59227.0,59226.0,0.002]
[1723875587832,1.13130497,59227.0,59226.0,0.002]
[1723875588032,0.40970497,59227.0,59226.0,0.002]
[1723875588440,1.13130497,59227.0,59226.0,0.002]
[1723875594240,0.40970497,59227.0,59226.0,0.002]
[1723875594439,0.77050497,59227.0,59226.0,0.002]
[1723875595135,0.85483243,59227.0,59226.0,0.002]
[1723875596247,0.79786712,59227.0,59226.0,0.002]
[1723875596944,0.77050497,59227.0,59226.0,0.002]
[1723875597141,0.79786696,59227.0,59226.0,0.002]
[1723875598434,0.89912188,59227.0,59226.0,0.002]
[1723875598947,0.79786696,59227.0,59226.0,0.002]
[1723875599740,0.79786741,59227.0,59226.0,0.002]
[1723875600439,0.89912255,59227.0,59226.0,0.002]
[1723875600638,0.067523,59224.0,59223.0,0.05080821]
[1723875600841,0.52828566,59224.0,59223.0,0.05080821]
[1723875601046,0.52828566,59224.0,59223.0,0.00025321]
[1723875601247,0.52828566,59224.0,59223.0,0.05087527]
[1723875601748,0.52928566,59224.0,59223.0,0.05187527]
[1723875602049,0.52932566,59224.0,59223.0,0.05187527]
[1723875602252,0.52932566,59224.0,59223.0,0.00125321]
[1723875602642,0.53032566,59224.0,59223.0,0.00125321]
[1723875603642,0.43692566,59224.0,59223.0,0.00125321]
[1723875603941,0.409563,59224.0,59223.0,0.00125321]
[1723875604451,0.49398271,59224.0,59223.0,0.00125321]
[1723875604641,0.409563,59224.0,59223.0,0.00125321]
[1723875605848,0.49398105,59224.0,59223.0,0.00125321]
[1723875606047,0.43692458,59224.0,59223.0,0.00125321]
[1723875606244,0.409563,59224.0,59223.0,0.00125321]
[1723875606450,0.4369245,59224.0,59223.0,0.00125321]
[1723875608149,0.409563,59224.0,59223.0,0.00125321]
[1723875608548,0.43692465,59224.0,59223.0,0.00125321]
[1723875608748,0.43692465,59224.0,59223.0,0.05187479]
[1723875610055,0.43692465,59224.0,59223.0,0.00125321]
[1723875610250,0.53817957,59224.0,59223.0,0.00125321]
[1723875610644,1.19281802,59224.0,59221.0,0.05063327]
[1723875610945,1.19281802,59224.0,59219.0,0.05063327]
[1723875610946,0.067528,59220.0,59219.0,0.05063327]
[1723875611150,0.067528,59220.0,59214.0,0.067535]
[1723875611151,0.067529,59219.0,59218.0,0.05063327]
[1723875611353,0.5382921,59219.0,59218.0,0.05063327]
[1723875611553,0.5382921,59219.0,59214.0,0.13494327]
[1723875611554,0.06753,59218.0,59217.0,0.05063327]
[1723875611746,0.5882931,59218.0,59217.0,0.05063327]
[1723875612550,0.5882931,59218.0,59216.0,0.05063327]
[1723875612551,0.56093,59218.0,59216.0,0.05063327]
[1723875612753,0.17777177,59217.0,59216.0,0.05063327]
[1723875612951,0.51777177,59217.0,59216.0,0.05063327]
[1723875613147,0.4334,59217.0,59214.0,0.11816827]
[1723875613354,0.3608,59215.0,59214.0,0.11816827]
[1723875613549,0.7408,59215.0,59214.0,0.067535]
[1723875614050,0.7408,59215.0,59214.0,0.05063327]
[1723875614249,0.7388,59215.0,59214.0,0.05063327]
[1723875614455,0.73884,59215.0,59214.0,0.05063327]
[1723875614850,0.73884,59215.0,59214.0,0.05563327]
[1723875615464,0.73884,59215.0,59214.0,0.006]
[1723875615860,0.73884,59215.0,59214.0,0.05663327]
[1723875616358,0.73884,59215.0,59214.0,0.006]
[1723875618470,0.806374,59215.0,59214.0,0.006]
[1723875618659,0.067535,59214.0,59213.0,0.00020221]
[1723875618964,0.68625767,59214.0,59213.0,0.00020221]
[1723875619469,0.58500275,59214.0,59213.0,0.00020221]
[1723875619956,0.58504275,59214.0,59213.0,0.00020221]
[1723875620457,0.0934,59207.0,59203.0,0.05063327]
[1723875620765,0.521746,59204.0,59200.0,0.05063327]
[1723875620967,0.521746,59204.0,59199.0,0.16478527]
[1723875620968,0.14395971,59201.0,59199.0,0.16478527]
[1723875621356,0.0934,59201.0,59199.0,0.114152]
[1723875621663,0.0844,59201.0,59199.0,0.114152]
[1723875622356,4e-05,59200.0,59199.0,0.124152]
[1723875623265,4e-05,59200.0,59199.0,0.077552]
[1723875623865,0.01004,59200.0,59199.0,0.077552]
[1723875624069,0.01004,59200.0,59199.0,0.088552]
[1723875624463,0.01004,59200.0,59199.0,0.077552]
[1723875624670,0.01104,59200.0,59199.0,0.088552]
[1723875628871,0.01104,59200.0,59199.0,0.181952]
[1723875630171,0.01104,59200.0,59199.0,0.172952]
[1723875631569,0.01004,59200.0,59199.0,0.161952]
[1723875631777,0.01004,59200.0,59199.0,0.165952]
[1723875634469,0.01004,59200.0,59199.0,0.072552]
[1723875641191,0.37084,59200.0,59199.0,0.072552]
[1723875646387,0.37084,59200.0,59199.0,0.13996027]
[1723875646998,0.37084,59200.0,59199.0,0.072552]
[1723875647399,0.37084,59200.0,59199.0,0.13996027]
[1723875647603,0.43824982,59200.0,59199.0,0.13996027]
[1723875648500,0.37084,59200.0,59199.0,0.072552]
[1723875657004,0.46424,59200.0,59199.0,0.072552]
[1723875658519,0.54850227,59200.0,59199.0,0.07256815]
[1723875658804,0.49161298,59200.0,59199.0,0.005]
[1723875659405,0.46424,59200.0,59199.0,0.005]
[1723875660208,0.531791,59200.0,59199.0,0.005]
[1723875662109,0.61622573,59200.0,59199.0,0.005]
[1723875665909,0.531791,59200.0,59199.0,0.07256815]
[1723875666311,0.531791,59200.0,59199.0,0.005]
[1723875674012,0.170991,59200.0,59199.0,0.005]
[1723875677812,0.25542573,59200.0,59199.0,0.005]
[1723875678206,0.61622573,59200.0,59199.0,0.005]
[1723875679516,0.61622573,59200.0,59199.0,0.05565477]
[1723875679723,0.61622573,59200.0,59199.0,0.005]
[1723875680019,0.531791,59200.0,59199.0,0.005]
[1723875680414,0.61622573,59200.0,59199.0,0.005]
[1723875682024,0.531791,59200.0,59199.0,0.005]
[1723875682918,0.61622573,59200.0,59199.0,0.005]
[1723875683316,0.531791,59200.0,59199.0,0.005]
[1723875683715,0.61622573,59200.0,59199.0,0.005]
[1723875684516,0.531791,59200.0,59199.0,0.005]
[1723875685113,0.61622573,59200.0,59199.0,0.005]
[1723875688024,0.531791,59200.0,59199.0,0.005]
[1723875688423,0.55916397,59200.0,59199.0,0.005]
[1723875689017,0.55916397,59200.0,59199.0,0.072552]
[1723875689018,0.37084,59200.0,59199.0,0.072552]
[1723875695230,0.01004,59200.0,59199.0,0.072552]
[1723875695933,0.37084,59200.0,59199.0,0.072552]
[1723875696127,0.01004,59200.0,59199.0,0.072552]
[1723875696322,0.37084,59200.0,59199.0,0.072552]
[1723875697827,0.01004,59200.0,59199.0,0.072552]
[1723875698023,0.37084,59200.0,59199.0,0.072552]
[1723875704527,0.01004,59200.0,59199.0,0.072552]
[1723875704724,0.37084,59200.0,59199.0,0.072552]
[1723875705627,0.01004,59200.0,59199.0,0.072552]
[1723875705830,0.37084,59200.0,59199.0,0.072552]
[1723875708625,0.45524464,59200.0,59199.0,0.14011919]
[1723875711933,0.52279564,59200.0,59199.0,0.07256719]
[1723875712129,1.54339983,59200.0,59194.0,0.05067978]
[1723875712334,1.54339983,59200.0,59191.0,0.05067978]
[1723875712335,0.7216,59195.0,59191.0,0.05067978]
[1723875712537,0.067563,59189.0,59188.0,0.05067978]
[1723875712738,0.87913565,59189.0,59188.0,0.05067978]
[1723875713235,0.86844974,59189.0,59186.0,0.05067978]
[1723875713432,0.0934,59187.0,59186.0,0.05067978]
[1723875713628,0.4834,59187.0,59186.0,0.05067978]
[1723875713833,0.39,59187.0,59186.0,0.05067978]
[1723875714027,0.4834,59187.0,59186.0,0.05067978]
[1723875714227,0.4834,59187.0,59180.0,0.067574]
[1723875714228,0.550966,59187.0,59185.0,0.05067978]
[1723875714427,0.0874,59186.0,59185.0,0.05067978]
[1723875714632,0.4194,59186.0,59185.0,0.05067978]
[1723875715132,0.48675342,59186.0,59184.0,0.05067978]
[1723875715346,0.0934,59185.0,59184.0,0.05067978]
[1723875715534,0.0934,59185.0,59183.0,0.05067978]
[1723875715535,0.44075342,59185.0,59183.0,0.05067978]
[1723875715736,0.0934,59184.0,59183.0,0.05067978]
[1723875715940,0.4034,59184.0,59183.0,0.05067978]
[1723875716140,0.4034,59184.0,59182.0,0.05067978]
[1723875716336,0.4542,59183.0,59182.0,0.05067978]
[1723875716542,0.4482,59183.0,59182.0,0.05067978]
[1723875717044,0.4542,59183.0,59182.0,0.05067978]
[1723875717248,0.4542,59183.0,59181.0,0.05067978]
[1723875717544,0.45424,59183.0,59182.0,0.05667978]
[1723875718341,0.45424,59183.0,59182.0,0.006]
[1723875719030,0.46524,59183.0,59182.0,0.006]
[1723875719833,0.46624,59183.0,59182.0,0.001]
[1723875725559,0.37284,59183.0,59182.0,0.001]
[1723875725762,0.46624,59183.0,59182.0,0.001]
[1723875726856,0.53381,59183.0,59182.0,0.001]
[1723875727056,0.53281,59183.0,59180.0,0.07782928]
[1723875727253,0.53281,59183.0,59182.0,0.001]
[1723875728360,0.53381,59183.0,59180.0,0.07782928]
[1723875728859,0.067573,59181.0,59177.0,0.00016792]
[1723875729053,0.0934,59178.0,59177.0,0.00016792]
[1723875729254,0.5642,59178.0,59177.0,0.00016792]
[1723875730053,0.56424,59178.0,59177.0,0.00016792]
[1723875730562,0.56324,59178.0,59177.0,0.00016792]
[1723875731160,0.56424,59178.0,59177.0,0.00116792]
[1723875733056,0.20344,59178.0,59177.0,0.00116792]
[1723875740664,0.20344,59178.0,59177.0,0.06874492]
[1723875741364,0.09344,59178.0,59177.0,0.06874492]
[1723875741562,0.00104,59178.0,59177.0,0.1194247]
[1723875741760,0.00104,59178.0,59177.0,0.06874492]
[1723875745170,0.05056562,59183.0,59179.0,0.067575]
[1723875745367,0.05056562,59183.0,59178.0,0.50696]
[1723875745368,0.05056891,59187.0,59186.0,0.067567]
[1723875745571,0.05056891,59190.0,59186.0,0.17575773]
[1723875745768,0.05056891,59191.0,59189.0,0.0934]
[1723875745967,0.05056891,59192.0,59191.0,0.067561]
[1723875746167,8.118e-05,59192.0,59191.0,0.160961]
[1723875746366,8.118e-05,59192.0,59191.0,0.667801]
[1723875746976,8.118e-05,59192.0,59191.0,0.067561]
[1723875747865,8.118e-05,59192.0,59191.0,0.574401]
[1723875748376,8.118e-05,59192.0,59191.0,0.65171646]
[1723875748779,0.01108118,59192.0,59191.0,0.14487646]
[1723875748979,0.01108118,59192.0,59191.0,0.65171646]
[1723875749280,0.02308118,59192.0,59191.0,0.07749422]
[1723875749463,0.02308118,59192.0,59191.0,0.58433422]
[1723875749662,0.01508118,59192.0,59191.0,0.07749422]
[1723875750168,0.01508118,59192.0,59191.0,0.067561]
[1723875750169,0.00408118,59192.0,59191.0,0.067561]
[1723875750367,0.00708118,59192.0,59191.0,0.067561]
[1723875754879,0.00708118,59192.0,59191.0,0.11803679]
[1723875755076,0.00708118,59192.0,59191.0,0.067561]
[1723875755281,0.00708118,59192.0,59191.0,0.11802994]
[1723875755873,0.00708118,59192.0,59191.0,0.067561]
[1723875756682,0.00708118,59192.0,59191.0,0.160961]
[1723875761685,0.03708118,59192.0,59191.0,0.160961]
[1723875762184,0.00708118,59192.0,59191.0,0.160961]
[1723875765176,0.02708118,59192.0,59191.0,0.160961]
[1723875765683,0.38788118,59192.0,59191.0,0.067561]
[1723875767980,0.48128118,59192.0,59191.0,0.067561]
[1723875768780,0.48128118,59192.0,59187.0,0.067565]
[1723875768978,0.0934,59188.0,59187.0,0.067565]
[1723875769179,0.4934,59188.0,59187.0,0.067565]
[1723875769483,0.54385802,59188.0,59187.0,0.067565]
[1723875769687,0.58925802,59188.0,59187.0,0.067565]
[1723875769999,0.58929802,59188.0,59187.0,0.067565]
[1723875770181,0.53884,59188.0,59187.0,0.068565]
[1723875770774,0.53884,59188.0,59187.0,0.067565]
[1723875770975,0.53884,59188.0,59187.0,0.068565]
[1723875771483,0.53884,59188.0,59187.0,0.001]
[1723875772889,0.54684,59188.0,59187.0,0.001]
[1723875773584,0.54684,59188.0,59183.0,0.11803794]
[1723875773893,0.0934,59184.0,59183.0,0.11803794]
[1723875774083,0.3034,59184.0,59183.0,0.11803794]
[1723875774886,0.30344,59184.0,59183.0,0.11803794]
[1723875775284,0.30344,59184.0,59183.0,0.067569]
[1723875775484,0.30644,59184.0,59183.0,0.067569]
[1723875775793,0.30644,59184.0,59183.0,0.11815158]
[1723875775979,0.30644,59184.0,59183.0,0.067569]
[1723875776794,0.30844,59184.0,59183.0,0.067569]
[1723875777293,0.30844,59184.0,59183.0,0.11814184]
[1723875778093,0.3589501,59184.0,59183.0,0.067569]
[1723875780092,0.30844,59184.0,59183.0,0.067569]
[1723875780897,0.21504,59184.0,59183.0,0.067569]
[1723875786999,0.26554877,59184.0,59183.0,0.067569]
[1723875787205,0.21504,59184.0,59183.0,0.067569]
[1723875788096,0.26555242,59184.0,59183.0,0.067569]
[1723875788297,0.21504,59184.0,59183.0,0.067569]
[1723875791697,0.21504,59184.0,59183.0,0.13495124]
[1723875793303,0.21504,59184.0,59183.0,0.067569]
[1723875795013,0.21504,59184.0,59183.0,0.13506467]
[1723875795210,0.21504,59184.0,59183.0,0.067569]
[1723875795722,0.30844,59184.0,59183.0,0.067569]
[1723875796116,0.37586083,59184.0,59183.0,0.067569]
[1723875798124,0.30844,59184.0,59183.0,0.067569]
[1723875803127,0.37594518,59184.0,59183.0,0.067569]
[1723875803434,0.30844,59184.0,59183.0,0.067569]
[1723875805131,0.37594026,59184.0,59183.0,0.15193293]
[1723875807327,0.30844,59184.0,59183.0,0.067569]
[1723875811035,0.66924,59184.0,59183.0,0.067569]
[1723875814039,0.30844,59184.0,59183.0,0.067569]
[1723875814234,0.66924,59184.0,59183.0,0.067569]
[1723875816040,0.73673254,59184.0,59183.0,0.067569]
[1723875816233,0.66924,59184.0,59183.0,0.067569]
[1723875827531,0.73672255,59184.0,59183.0,0.067569]
[1723875827840,0.66924,59184.0,59183.0,0.067569]
[1723875829040,0.30844,59184.0,59183.0,0.15193293]
[1723875829239,0.21504,59184.0,59183.0,0.24124313]
[1723875829448,0.21504,59184.0,59183.0,0.1568792]
[1723875829637,0.21504,59184.0,59183.0,0.2413399]
[1723875831744,0.21504,59184.0,59183.0,0.1520297]
[1723875832741,0.21504,59184.0,59183.0,0.067569]
[1723875837755,0.28252305,59184.0,59183.0,0.067569]
[1723875838257,0.21504,59184.0,59183.0,0.067569]
[1723875839855,0.21504,59184.0,59183.0,0.160969]
[1723875840246,0.21504,59184.0,59183.0,0.2454297]
[1723875840447,0.26563932,59184.0,59183.0,0.61105575]
[1723875840652,0.21504,59184.0,59183.0,1.56443575]
[1723875840853,0.21504,59184.0,59183.0,1.66303575]
[1723875841353,0.05059932,59191.0,59190.0,0.067562]
[1723875841553,0.02,59191.0,59190.0,0.160962]
[1723875841758,0.02,59191.0,59190.0,0.24909378]
[1723875842457,0.02,59191.0,59190.0,0.33343564]
[1723875842760,0.041,59191.0,59190.0,0.33343564]
[1723875843262,0.03,59191.0,59190.0,0.33343564]
[1723875843457,0.039,59191.0,59190.0,0.24530386]
[1723875843660,0.039,59191.0,59190.0,0.160962]
[1723875845053,0.036,59191.0,59190.0,0.161962]
[1723875847459,0.036,59191.0,59190.0,0.17223649]
[1723875860376,0.036,59191.0,59190.0,0.07883649]
[1723875860578,0.036,59191.0,59190.0,0.17223649]
[1723875867374,0.036,59191.0,59190.0,0.25657835]
[1723875868587,0.036,59191.0,59190.0,0.26013785]
[1723875869492,0.08659932,59191.0,59190.0,0.26013785]
[1723875872280,0.036,59191.0,59190.0,0.3614647]
[1723875873488,0.036,59191.0,59190.0,0.36153294]
[1723875880293,0.08659932,59191.0,59190.0,0.26020609]
[1723875882587,0.08659932,59191.0,59190.0,0.26024699]
[1723875887193,0.08659932,59191.0,59190.0,0.26022753]
[1723875890109,0.08659932,59191.0,59190.0,0.36155438]
[1723875891013,0.036,59191.0,59190.0,0.36155438]
[1723875895301,0.036,59191.0,59190.0,0.26022753]
[1723875895913,0.016,59191.0,59190.0,0.26022753]
[1723875896104,0.026,59191.0,59190.0,0.26022753]
[1723875900606,0.026,59191.0,59190.0,0.2601535]
[1723875901005,0.07659341,59191.0,59190.0,0.2601535]
[1723875901413,0.07659341,59191.0,59190.0,0.1667535]
[1723875901609,0.026,59191.0,59190.0,0.2601535]
[1723875904108,0.026,59191.0,59190.0,0.2604353]
[1723875906007,0.07659013,59191.0,59190.0,0.2604353]
[1723875907211,0.026,59191.0,59190.0,0.2604353]
[1723875908005,0.026,59191.0,59190.0,0.36176215]
[1723875908610,0.026,59191.0,59190.0,0.26044746]
[1723875909414,0.026,59191.0,59190.0,0.36177431]
[1723875911421,0.026,59191.0,59190.0,0.26044746]
[1723875911620,0.026,59191.0,59190.0,0.36179697]
[1723875913021,0.026,59191.0,59190.0,0.36166239]
[1723875913220,0.016,59191.0,59190.0,0.36166239]
[1723875913525,0.05057892,59201.0,59200.0,0.067551]
[1723875913816,0.05057892,59205.0,59204.0,0.067546]
[1723875914024,0.05057892,59209.0,59204.0,0.29226216]
[1723875914320,0.05057892,59213.0,59208.0,0.3608]
[1723875914620,0.00025343,59216.0,59214.0,0.0934]
[1723875914928,0.00025343,59216.0,59215.0,0.05056815]
[1723875915520,0.00025343,59216.0,59214.0,0.21150315]
[1723875916226,0.01425343,59216.0,59215.0,0.001]
[1723875916825,0.00025343,59216.0,59214.0,0.160935]
[1723875917124,0.37005343,59216.0,59214.0,0.161935]
[1723875917319,0.55005343,59216.0,59214.0,0.161935]
[1723875917527,0.56205343,59216.0,59215.0,0.001]
[1723875917925,0.55005343,59216.0,59214.0,0.161935]
[1723875918128,0.56205343,59216.0,59214.0,0.162935]
[1723875918626,0.56705343,59216.0,59215.0,0.002]
[1723875919017,0.20625343,59216.0,59215.0,0.002]
[1723875919337,0.55505343,59216.0,59215.0,0.001]
[1723875919526,0.55505343,59216.0,59214.0,0.160935]
[1723875919527,0.18025343,59216.0,59214.0,0.160935]
[1723875919723,0.55505343,59216.0,59214.0,0.161935]
[1723875920818,4e-05,59215.0,59214.0,0.161935]
[1723875921529,4e-05,59215.0,59214.0,0.160935]